bitfinex-derivatives/quotes_BTCF0:USTF0_20240825
["timestamp","ask_amount","ask_price","bid_price","bid_amount"]
[1724561293706,0.001,64179.0,64178.0,0.99096587]
[1724561295543,0.001,64179.0,64178.0,0.96662054]
[1724561295809,0.001,64179.0,64178.0,0.99096569]
[1724561297406,0.001,64179.0,64178.0,0.87231715]
[1724561297613,0.001,64179.0,64178.0,0.26936569]
[1724561297909,0.001,64179.0,64178.0,0.99096569]
[1724561298120,0.001,64179.0,64178.0,0.91812054]
[1724561298814,0.001,64179.0,64178.0,0.94246569]
[1724561299000,0.001,64179.0,64178.0,0.96681084]
[1724561299510,0.001,64179.0,64178.0,0.24521084]
[1724561299714,0.001,64179.0,64178.0,0.96681084]
[1724561300110,0.001,64179.0,64178.0,0.24521084]
[1724561300310,0.001,64179.0,64178.0,1.05681084]
[1724561301555,0.001,64179.0,64178.0,1.03246569]
[1724561301813,0.001,64179.0,64178.0,0.31086569]
[1724561302014,0.001,64179.0,64178.0,1.03246569]
[1724561307319,0.001,64179.0,64178.0,0.31086569]
[1724561307844,0.001,64179.0,64178.0,1.00812054]
[1724561307914,0.001,64179.0,64178.0,1.03246569]
[1724561308160,0.001,64179.0,64178.0,1.00812054]
[1724561308316,0.001,64179.0,64178.0,0.31086569]
[1724561308814,0.001,64179.0,64178.0,1.03246569]
[1724561310843,0.001,64179.0,64178.0,1.00812054]
[1724561311019,0.001,64179.0,64178.0,1.03246569]
[1724561314520,0.001,64179.0,64178.0,0.31086569]
[1724561314713,0.001,64179.0,64178.0,1.03246569]
[1724561317253,0.001,64179.0,64178.0,0.91381715]
[1724561317423,0.03107478,64179.0,64178.0,0.91381715]
[1724561317725,0.15556163,64179.0,64178.0,0.91381715]
[1724561317831,0.15556163,64179.0,64178.0,0.19221715]
[1724561318228,0.15556163,64179.0,64178.0,0.91381715]
[1724561318229,0.06920172,64179.0,64178.0,0.91381715]
[1724561318424,0.03107478,64179.0,64178.0,0.91381715]
[1724561320229,0.001,64179.0,64178.0,0.91381715]
[1724561320434,0.001,64179.0,64178.0,1.03246568]
[1724561320826,0.001,64179.0,64178.0,0.31086568]
[1724561321028,0.001,64179.0,64178.0,1.03246568]
[1724561321228,0.001,64179.0,64178.0,0.31086568]
[1724561321629,0.001,64179.0,64178.0,1.03246568]
[1724561321834,0.001,64179.0,64178.0,0.31086568]
[1724561322245,0.001,64179.0,64178.0,1.03246568]
[1724561325231,0.001,64179.0,64178.0,1.03246567]
[1724561327340,0.001,64179.0,64178.0,0.31086567]
[1724561327728,0.001,64179.0,64178.0,1.03246567]
[1724561328743,0.001,64179.0,64178.0,0.31086567]
[1724561328927,0.001,64179.0,64178.0,1.03246567]
[1724561329333,0.001,64179.0,64178.0,0.31086567]
[1724561329535,0.001,64179.0,64178.0,1.03246567]
[1724561329934,0.001,64179.0,64178.0,1.00812052]
[1724561330137,0.001,64179.0,64178.0,1.03246567]
[1724561330434,0.001,64179.0,64178.0,0.31086567]
[1724561330631,0.001,64179.0,64178.0,1.03246567]
[1724561331224,0.001,64179.0,64178.0,0.31086567]
[1724561331832,0.001,64179.0,64178.0,1.03246567]
[1724561332943,0.001,64179.0,64178.0,1.00812052]
[1724561333238,0.001,64179.0,64178.0,1.03246566]
[1724561333428,0.001,64179.0,64178.0,0.31086566]
[1724561333737,0.001,64179.0,64178.0,1.03246566]
[1724561335937,0.07790182,64188.0,64187.0,0.077861]
[1724561336210,0.07789878,64190.0,64189.0,0.077858]
[1724561336448,0.0476,64193.0,64189.0,0.077858]
[1724561336449,0.0476,64193.0,64189.0,0.09]
[1724561336656,0.0476,64193.0,64192.0,0.09]
[1724561337845,0.0476,64193.0,64192.0,0.167855]
[1724561339041,0.0476,64193.0,64192.0,0.168855]
[1724561339437,0.0476,64193.0,64192.0,0.21643603]
[1724561339750,0.0476,64193.0,64192.0,0.169855]
[1724561340146,0.0476,64193.0,64192.0,0.530655]
[1724561343554,0.0476,64193.0,64192.0,0.169855]
[1724561343741,0.0476,64193.0,64192.0,0.530655]
[1724561346255,0.12534259,64193.0,64192.0,0.530655]
[1724561347155,0.12534259,64193.0,64192.0,0.440655]
[1724561347465,0.12534259,64193.0,64192.0,0.530655]
[1724561349055,0.12534259,64193.0,64192.0,0.169855]
[1724561349356,0.12534259,64193.0,64192.0,0.530655]
[1724561349551,0.12534259,64193.0,64192.0,0.169855]
[1724561350155,0.12534259,64193.0,64192.0,0.530655]
[1724561350758,0.12534259,64193.0,64192.0,0.169855]
[1724561350959,0.12534259,64193.0,64192.0,0.530655]
[1724561352153,0.12534259,64193.0,64192.0,0.169855]
[1724561352359,0.12534259,64193.0,64192.0,0.530655]
[1724561353756,0.12534259,64193.0,64192.0,0.169855]
[1724561353956,0.12534259,64193.0,64192.0,0.530655]
[1724561354962,0.07774259,64193.0,64192.0,0.530655]
[1724561355258,0.04649652,64196.0,64192.0,0.4528]
[1724561355462,0.09348219,64202.0,64192.0,0.4528]
[1724561355463,0.09,64202.0,64197.0,0.077849]
[1724561355699,0.0456,64201.0,64198.0,0.3608]
[1724561355871,0.09,64199.0,64198.0,0.3608]
[1724561356663,0.55732,64199.0,64198.0,0.3608]
[1724561356957,0.635167,64199.0,64198.0,0.3608]
[1724561357153,0.635167,64199.0,64198.0,0.3618]
[1724561357954,0.635167,64199.0,64198.0,0.001]
[1724561358261,0.635167,64199.0,64198.0,0.002]
[1724561359059,0.635167,64199.0,64198.0,0.001]
[1724561359463,0.635167,64199.0,64198.0,0.002]
[1724561360258,0.70335951,64199.0,64198.0,0.002]
[1724561362776,0.23603951,64199.0,64198.0,0.002]
[1724561363265,0.167847,64199.0,64198.0,0.002]
[1724561366675,0.167847,64199.0,64198.0,0.001]
[1724561366891,0.167847,64199.0,64198.0,0.002]
[1724561370672,0.167847,64199.0,64187.0,0.04660391]
[1724561370673,0.07786,64188.0,64187.0,0.04660391]
[1724561370873,0.12007515,64188.0,64181.0,0.04683768]
[1724561371077,0.54754801,64192.0,64181.0,0.04683768]
[1724561371078,0.167867,64182.0,64181.0,0.00023377]
[1724561372779,0.167867,64182.0,64181.0,0.00423377]
[1724561374078,0.167867,64182.0,64181.0,0.01023377]
[1724561374590,0.09,64182.0,64181.0,0.08410177]
[1724561374808,0.09,64182.0,64181.0,0.11044862]
[1724561374978,0.09,64182.0,64181.0,0.08610177]
[1724561375180,0.09,64182.0,64181.0,0.1104486]
[1724561375582,0.09,64182.0,64181.0,0.1044486]
[1724561375787,0.09,64182.0,64181.0,0.1084486]
[1724561379775,0.09,64182.0,64181.0,0.08410177]
[1724561392287,0.09,64182.0,64181.0,0.13060891]
[1724561393593,0.09,64182.0,64181.0,0.08410177]
[1724561395182,0.09,64182.0,64181.0,0.13060891]
[1724561395594,0.09,64182.0,64181.0,0.08410177]
[1724561396297,0.09,64182.0,64181.0,0.13060891]
[1724561398291,0.09,64182.0,64181.0,0.08410177]
[1724561400683,0.09,64182.0,64181.0,0.00623377]
[1724561400684,0.167867,64182.0,64181.0,0.00623377]
[1724561400901,0.167867,64182.0,64180.0,0.04662732]
[1724561400902,0.077868,64181.0,64180.0,0.04662732]
[1724561401091,0.077869,64180.0,64179.0,0.04662732]
[1724561401292,0.09,64180.0,64175.0,0.06216707]
[1724561401597,0.0949,64181.0,64173.0,0.077878]
[1724561401598,0.077876,64175.0,64173.0,0.077878]
[1724561401795,0.18343787,64174.0,64173.0,0.077878]
[1724561402940,0.26131487,64174.0,64173.0,0.013]
[1724561403200,0.197959,64174.0,64173.0,0.013]
[1724561404394,0.197959,64174.0,64168.0,0.00023377]
[1724561404395,0.077883,64169.0,64168.0,0.00023377]
[1724561404598,0.167883,64169.0,64168.0,0.00023377]
[1724561405594,0.167883,64169.0,64168.0,0.01423377]
[1724561406196,0.167883,64169.0,64168.0,0.02823377]
[1724561406197,0.168883,64169.0,64168.0,0.02823377]
[1724561411201,1.036403,64169.0,64168.0,0.02823377]
[1724561411601,1.128303,64169.0,64168.0,0.02823377]
[1724561413296,1.489103,64169.0,64168.0,0.02823377]
[1724561415701,1.089103,64169.0,64168.0,0.02823377]
[1724561417909,0.728303,64169.0,64168.0,0.02823377]
[1724561418104,1.089103,64169.0,64168.0,0.02823377]
[1724561418712,0.728303,64169.0,64168.0,0.02823377]
[1724561418908,1.089103,64169.0,64168.0,0.02823377]
[1724561420611,1.112503,64169.0,64168.0,0.02823377]
[1724561421006,0.751703,64169.0,64168.0,0.02823377]
[1724561421210,1.112503,64169.0,64168.0,0.02823377]
[1724561423610,0.644983,64169.0,64168.0,0.02823377]
[1724561426011,0.284183,64169.0,64168.0,0.02823377]
[1724561426216,0.644983,64169.0,64168.0,0.02823377]
[1724561426417,0.284183,64169.0,64168.0,0.02823377]
[1724561426818,0.644983,64169.0,64168.0,0.02823377]
[1724561428419,0.72277715,64169.0,64168.0,0.02823377]
[1724561429309,0.644983,64169.0,64168.0,0.02823377]
[1724561429515,0.284183,64169.0,64168.0,0.02823377]
[1724561429716,0.644983,64169.0,64168.0,0.02823377]
[1724561430119,0.284183,64169.0,64168.0,0.02823377]
[1724561430320,0.644983,64169.0,64168.0,0.02823377]
[1724561430520,0.5671,64169.0,64159.0,0.3608]
[1724561430722,0.09,64160.0,64159.0,0.3608]
[1724561431335,0.167894,64160.0,64159.0,0.3608]
[1724561431826,0.167894,64160.0,64159.0,0.014]
[1724561432013,0.167894,64160.0,64159.0,0.024]
[1724561432213,0.167894,64160.0,64159.0,0.07058238]
[1724561432415,0.167894,64160.0,64159.0,0.014]
[1724561432615,0.167894,64160.0,64159.0,0.024]
[1724561432616,0.168894,64160.0,64159.0,0.024]
[1724561433741,0.26224699,64160.0,64159.0,0.024]
[1724561435524,0.168894,64160.0,64159.0,0.024]
[1724561438524,0.168894,64160.0,64159.0,0.08616707]
[1724561440530,0.168894,64160.0,64159.0,0.024]
[1724561441028,0.168894,64160.0,64159.0,0.08619127]
[1724561441516,0.24673466,64160.0,64159.0,0.08619127]
[1724561443920,0.24673466,64160.0,64159.0,0.024]
[1724561444121,0.168894,64160.0,64159.0,0.024]
[1724561444429,0.24681591,64160.0,64159.0,0.024]
[1724561444932,0.168894,64160.0,64159.0,0.08619127]
[1724561447030,0.168894,64160.0,64159.0,0.16408627]
[1724561447031,0.091,64160.0,64159.0,0.16408627]
[1724561447231,0.091,64160.0,64159.0,0.25408627]
[1724561447232,0.001,64160.0,64159.0,0.25408627]
[1724561447434,0.001,64160.0,64159.0,0.191895]
[1724561451344,0.001,64160.0,64159.0,0.101895]
[1724561455339,0.001,64160.0,64159.0,0.12624966]
[1724561455543,0.001,64160.0,64159.0,0.101895]
[1724561455737,0.001,64160.0,64159.0,0.462695]
[1724561456137,0.001,64160.0,64159.0,0.101895]
[1724561456344,0.001,64160.0,64159.0,0.48704966]
[1724561456541,0.001,64160.0,64159.0,0.12624966]
[1724561456741,0.001,64160.0,64159.0,0.48704966]
[1724561459544,0.001,64160.0,64159.0,0.57704966]
[1724561459741,0.00023377,64166.0,64159.0,0.57704966]
[1724561459742,0.00023377,64166.0,64159.0,0.71522271]
[1724561460050,0.00023377,64166.0,64165.0,0.4508]
[1724561460353,0.00023377,64166.0,64165.0,0.47515466]
[1724561460943,0.00123377,64166.0,64165.0,0.55304266]
[1724561461252,0.00223377,64166.0,64165.0,0.55304034]
[1724561461739,0.00223377,64166.0,64165.0,0.56304034]
[1724561461938,0.00223377,64166.0,64165.0,0.62518161]
[1724561462245,0.00223377,64166.0,64165.0,0.62516697]
[1724561463254,0.00223377,64166.0,64165.0,0.60081463]
[1724561463546,0.00223377,64166.0,64165.0,0.62516685]
[1724561464550,0.00223377,64166.0,64165.0,0.26436685]
[1724561464853,0.00223377,64166.0,64165.0,0.62516685]
[1724561465249,0.00223377,64166.0,64165.0,0.60081463]
[1724561466552,0.00223377,64166.0,64165.0,0.538688]
[1724561467448,0.00223377,64166.0,64165.0,1.006248]
[1724561467840,0.07792191,64173.0,64172.0,0.077879]
[1724561468049,0.07792191,64173.0,64172.0,0.528679]
[1724561468447,0.07792191,64173.0,64172.0,0.55302699]
[1724561469151,0.07792191,64173.0,64172.0,0.528679]
[1724561470250,0.07892191,64173.0,64172.0,0.55302665]
[1724561470649,0.07892191,64173.0,64172.0,0.55802665]
[1724561472253,0.001,64173.0,64172.0,0.55802665]
[1724561473755,0.001,64173.0,64172.0,0.533679]
[1724561473961,0.001,64173.0,64172.0,0.894479]
[1724561476866,0.001,64173.0,64172.0,0.533679]
[1724561478059,0.001,64173.0,64172.0,0.443679]
[1724561478259,0.23675451,64173.0,64172.0,0.11329205]
[1724561479171,0.001,64173.0,64172.0,0.23761626]
[1724561479671,0.001,64173.0,64172.0,0.48512421]
[1724561480664,0.001,64173.0,64172.0,0.12432421]
[1724561480864,0.001,64173.0,64172.0,0.48512421]
[1724561481262,0.001,64173.0,64172.0,0.438679]
[1724561481462,0.001,64173.0,64172.0,0.48512421]
[1724561481866,0.001,64173.0,64172.0,0.57512421]
[1724561483462,0.001,64173.0,64172.0,0.21432421]
[1724561483662,0.001,64173.0,64172.0,0.57512421]
[1724561484070,0.001,64173.0,64172.0,0.21432421]
[1724561484570,0.001,64173.0,64172.0,0.57512421]
[1724561484765,0.001,64173.0,64172.0,0.21432421]
[1724561484980,0.001,64173.0,64172.0,0.57512421]
[1724561485364,0.001,64173.0,64172.0,0.21432421]
[1724561485767,0.001,64173.0,64172.0,0.57512421]
[1724561486270,0.001,64173.0,64172.0,0.528679]
[1724561486663,0.001,64173.0,64172.0,0.167879]
[1724561486858,0.001,64173.0,64172.0,0.528679]
[1724561487273,0.001,64173.0,64172.0,0.167879]
[1724561487869,0.001,64173.0,64172.0,0.528679]
[1724561488072,0.00023377,64179.0,64172.0,0.528679]
[1724561488372,0.00023377,64179.0,64178.0,0.4508]
[1724561488809,0.00023377,64179.0,64178.0,0.528672]
[1724561489371,0.00023377,64179.0,64178.0,0.57519212]
[1724561490382,0.00123377,64179.0,64178.0,0.57519212]
[1724561490972,0.00323377,64179.0,64178.0,0.57519212]
[1724561491488,0.00323377,64179.0,64178.0,0.528672]
[1724561494439,0.00323377,64179.0,64178.0,0.59069882]
[1724561494980,0.00323377,64179.0,64178.0,0.22989882]
[1724561495168,0.00323377,64179.0,64178.0,0.59069882]
[1724561495366,0.00323377,64179.0,64178.0,0.528672]
[1724561495779,0.00323377,64179.0,64178.0,0.438672]
[1724561498072,0.00323377,64179.0,64178.0,0.077872]
[1724561498273,0.00323377,64179.0,64178.0,0.438672]
[1724561499184,0.00323377,64179.0,64178.0,0.077872]
[1724561499386,0.00323377,64179.0,64178.0,0.438672]
[1724561500984,0.00323377,64179.0,64178.0,0.077872]
[1724561501382,0.00323377,64179.0,64178.0,0.438672]
[1724561503675,0.03331071,64179.0,64178.0,0.438672]
[1724561505288,0.03331071,64179.0,64178.0,0.077872]
[1724561505480,0.03331071,64179.0,64178.0,0.438672]
[1724561505687,0.03331071,64179.0,64178.0,0.077872]
[1724561505982,0.03331071,64179.0,64178.0,0.438672]
[1724561506381,0.00323377,64179.0,64178.0,0.077872]
[1724561506578,0.00323377,64179.0,64178.0,0.438672]
[1724561507780,0.00323377,64179.0,64178.0,0.077872]
[1724561507978,0.00323377,64179.0,64178.0,0.438672]
[1724561509074,0.00323377,64179.0,64178.0,0.077872]
[1724561509288,0.00323377,64179.0,64178.0,0.438672]
[1724561509483,0.00323377,64179.0,64178.0,0.077872]
[1724561510082,0.00323377,64179.0,64178.0,0.438672]
[1724561511791,0.00323377,64179.0,64178.0,0.077872]
[1724561512591,0.00323377,64179.0,64178.0,0.438672]
[1724561513196,0.00323377,64179.0,64178.0,0.077872]
[1724561513489,0.00323377,64179.0,64178.0,0.438672]
[1724561513791,0.00323377,64179.0,64178.0,0.077872]
[1724561514093,0.00323377,64179.0,64178.0,0.438672]
[1724561514277,0.00323377,64179.0,64178.0,0.077872]
[1724561514483,0.00323377,64179.0,64178.0,0.438672]
[1724561515386,0.00323377,64179.0,64178.0,0.46301889]
[1724561516892,0.00323377,64179.0,64178.0,0.4630189]
[1724561517089,0.00323377,64179.0,64178.0,0.1022189]
[1724561517289,0.00323377,64179.0,64178.0,0.4630189]
[1724561518100,0.09323377,64179.0,64178.0,0.3851469]
[1724561518393,0.077872,64178.0,64177.0,0.06214158]
[1724561518593,0.077872,64178.0,64176.0,0.14001558]
[1724561519285,0.077872,64178.0,64176.0,0.077874]
[1724561519787,0.077872,64178.0,64177.0,0.077873]
[1724561519993,0.077872,64178.0,64177.0,0.167873]
[1724561520379,0.078872,64178.0,64177.0,0.167873]
[1724561522990,0.439672,64178.0,64177.0,0.167873]
[1724561523191,0.3618,64178.0,64177.0,0.167873]
[1724561524191,0.3618,64178.0,64177.0,0.23001458]
[1724561524598,0.001,64178.0,64177.0,0.167873]
[1724561526690,0.091,64178.0,64177.0,0.13996784]
[1724561526993,0.001,64178.0,64177.0,0.22996784]
[1724561527188,0.001,64178.0,64177.0,0.167873]
[1724561529095,0.001,64178.0,64177.0,0.528673]
[1724561531488,0.001,64178.0,64177.0,0.167873]
[1724561532293,0.001,64178.0,64177.0,0.528673]
[1724561533284,0.001,64178.0,64177.0,0.167873]
[1724561533487,0.001,64178.0,64177.0,0.528673]
[1724561533690,0.001,64178.0,64177.0,0.55301999]
[1724561533989,0.001,64178.0,64177.0,0.19221999]
[1724561534191,0.001,64178.0,64177.0,0.55301999]
[1724561534408,0.001,64178.0,64177.0,0.528673]
[1724561534682,0.001,64178.0,64177.0,0.55301986]
[1724561536607,0.001,64178.0,64177.0,0.55301956]
[1724561537206,0.001,64178.0,64177.0,0.528673]
[1724561537423,0.001,64178.0,64177.0,0.55301956]
[1724561537701,0.001,64178.0,64177.0,0.528673]
[1724561538592,0.001,64178.0,64177.0,0.5752154]
[1724561538792,0.001,64178.0,64177.0,0.2144154]
[1724561538987,0.001,64178.0,64177.0,0.5752154]
[1724561541398,0.001,64178.0,64177.0,0.167873]
[1724561541608,0.001,64178.0,64177.0,0.528673]
[1724561543598,0.001,64178.0,64177.0,0.167873]
[1724561544105,0.001,64178.0,64177.0,0.528673]
[1724561544402,0.03107647,64178.0,64177.0,0.528673]
[1724561545299,0.03107647,64178.0,64177.0,0.167873]
[1724561545605,0.03107647,64178.0,64177.0,0.55301954]
[1724561546520,0.001,64178.0,64177.0,0.167873]
[1724561546706,0.001,64178.0,64177.0,0.55301954]
[1724561546898,0.001,64178.0,64177.0,0.19221954]
[1724561547205,0.001,64178.0,64177.0,0.55301954]
[1724561549197,0.001,64178.0,64177.0,0.63042822]
[1724561550209,0.001,64178.0,64177.0,0.26962822]
[1724561550407,0.001,64178.0,64177.0,0.63042822]
[1724561550611,0.001,64178.0,64177.0,0.55301954]
[1724561551507,0.001,64178.0,64177.0,0.63042822]
[1724561551906,0.001,64178.0,64177.0,0.26962822]
[1724561552100,0.001,64178.0,64177.0,0.63042822]
[1724561552509,0.001,64178.0,64177.0,0.74908288]
[1724561553111,0.001,64178.0,64177.0,0.74908275]
[1724561553344,0.001,64178.0,64177.0,0.72473634]
[1724561553500,0.001,64178.0,64177.0,0.38828275]
[1724561553703,0.001,64178.0,64177.0,0.74908275]
[1724561554313,0.001,64178.0,64177.0,0.67167407]
[1724561554507,0.001,64178.0,64177.0,0.31087407]
[1724561554702,0.001,64178.0,64177.0,0.67167407]
[1724561555905,0.001,64178.0,64177.0,0.58167407]
[1724561556113,0.0922,64178.0,64177.0,0.46301941]
[1724561556304,0.1415,64178.0,64177.0,0.438673]
[1724561557512,0.1415,64178.0,64177.0,0.50075338]
[1724561558019,0.1415,64178.0,64177.0,0.13995338]
[1724561561323,0.219372,64178.0,64177.0,0.13995338]
[1724561562911,0.001,64178.0,64177.0,0.167873]
[1724561564818,0.001,64178.0,64177.0,0.077873]
[1724561565913,0.001,64178.0,64177.0,0.13989899]
[1724561566214,0.001,64178.0,64177.0,0.077873]
[1724561566415,0.001,64178.0,64177.0,0.13989866]
[1724561573910,0.001,64178.0,64177.0,0.077873]
[1724561578059,0.001,64178.0,64177.0,0.13989866]
[1724561580224,0.001,64178.0,64177.0,0.077873]
[1724561580423,0.001,64178.0,64177.0,0.13989866]
[1724561583731,0.091,64178.0,64177.0,0.13989866]
[1724561584527,0.077873,64177.0,64176.0,0.06202566]
[1724561584731,0.167873,64177.0,64176.0,0.06202566]
[1724561586438,0.167873,64177.0,64176.0,0.06602566]
[1724561588426,0.167873,64177.0,64176.0,0.004]
[1724561590029,0.077873,64177.0,64176.0,0.004]
[1724561590333,0.167873,64177.0,64176.0,0.004]
[1724561595736,0.167873,64177.0,64176.0,0.06602566]
[1724561603853,0.077873,64177.0,64176.0,0.06602566]
[1724561604151,0.167873,64177.0,64176.0,0.14389966]
[1724561606852,0.167873,64177.0,64176.0,0.06602566]
[1724561607153,0.167873,64177.0,64176.0,0.02834911]
[1724561612854,0.26128795,64177.0,64176.0,0.02834911]
[1724561614173,0.26128795,64177.0,64176.0,0.004]
[1724561614458,0.167873,64177.0,64176.0,0.02834911]
[1724561619961,0.167873,64177.0,64176.0,0.004]
[1724561622662,0.167873,64177.0,64176.0,0.081874]
[1724561641881,0.167873,64177.0,64176.0,0.10622306]
[1724561643288,0.167873,64177.0,64176.0,0.02834906]
[1724561643480,0.167873,64177.0,64176.0,0.004]
[1724561645291,0.167873,64177.0,64176.0,0.05057608]
[1724561645789,0.167873,64177.0,64176.0,0.05057584]
[1724561646185,0.528673,64177.0,64176.0,0.004]
[1724561646390,0.528673,64177.0,64176.0,0.05057525]
[1724561647090,0.167873,64177.0,64176.0,0.05057525]
[1724561647286,0.528673,64177.0,64176.0,0.05057525]
[1724561647514,0.528673,64177.0,64176.0,0.05057172]
[1724561647740,0.528673,64177.0,64176.0,0.004]
[1724561648391,0.528673,64177.0,64176.0,0.05057075]
[1724561650791,0.528673,64177.0,64176.0,0.004]
[1724561650990,0.528673,64177.0,64176.0,0.05056731]
[1724561651187,0.528673,64177.0,64176.0,0.05056715]
[1724561654992,0.528673,64177.0,64139.0,0.06820895]
[1724561654993,0.4508,64177.0,64169.0,0.07760159]
[1724561655190,0.077884,64168.0,64167.0,0.06211181]
[1724561655392,0.077885,64167.0,64166.0,0.00023377]
[1724561655692,0.077885,64167.0,64166.0,0.04680655]
[1724561655886,0.126685,64167.0,64166.0,0.00023377]
[1724561656989,0.127685,64167.0,64166.0,0.00623377]
[1724561658001,0.128685,64167.0,64166.0,0.00623377]
[1724561659897,0.489485,64167.0,64166.0,0.00623377]
[1724561660895,0.128685,64167.0,64166.0,0.00623377]
[1724561661094,0.489485,64167.0,64166.0,0.00623377]
[1724561665096,0.128685,64167.0,64166.0,0.00623377]
[1724561665297,0.489485,64167.0,64166.0,0.00623377]
[1724561665997,0.128685,64167.0,64166.0,0.00623377]
[1724561666209,0.489485,64167.0,64166.0,0.00623377]
[1724561668709,0.128685,64167.0,64166.0,0.00623377]
[1724561669307,0.489485,64167.0,64166.0,0.00623377]
[1724561670109,0.128685,64167.0,64166.0,0.00623377]
[1724561670413,0.489485,64167.0,64166.0,0.00623377]
[1724561671413,0.440685,64167.0,64166.0,0.00623377]
[1724561682412,0.440685,64167.0,64166.0,0.05280655]
[1724561682613,0.3628,64167.0,64166.0,0.13069255]
[1724561683423,0.3628,64167.0,64166.0,0.08411977]
[1724561686118,0.002,64167.0,64166.0,0.08411977]
[1724561686327,0.3628,64167.0,64166.0,0.08411977]
[1724561691653,0.002,64167.0,64166.0,0.08411977]
[1724561691822,0.3628,64167.0,64166.0,0.08411977]
[1724561697045,0.4528,64167.0,64166.0,0.08411977]
[1724561702332,0.4528,64167.0,64166.0,0.13077621]
[1724561703430,0.092,64167.0,64166.0,0.13077621]
[1724561703632,0.4528,64167.0,64166.0,0.13077621]
[1724561707031,0.092,64167.0,64166.0,0.13077621]
[1724561707540,0.4528,64167.0,64166.0,0.13077621]
[1724561709234,0.4528,64167.0,64166.0,0.08411977]
[1724561711136,0.092,64167.0,64166.0,0.08411977]
[1724561711349,0.4528,64167.0,64166.0,0.08411977]
[1724561711641,0.092,64167.0,64166.0,0.08411977]
[1724561711834,0.4528,64167.0,64166.0,0.08411977]
[1724561713235,0.4528,64167.0,64166.0,0.13077129]
[1724561715538,0.092,64167.0,64166.0,0.13077129]
[1724561715840,0.4528,64167.0,64166.0,0.13077129]
[1724561717147,0.092,64167.0,64166.0,0.13077129]
[1724561717339,0.4528,64167.0,64166.0,0.13077129]
[1724561719933,0.092,64167.0,64166.0,0.13077129]
[1724561720137,0.4528,64167.0,64166.0,0.13077129]
[1724561721439,0.3628,64167.0,64166.0,0.13077129]
[1724561721643,0.3628,64167.0,64166.0,0.08411977]
[1724561721845,0.4528,64167.0,64166.0,0.08411977]
[1724561723242,0.2310696,64167.0,64166.0,0.08411977]
[1724561723844,0.5918696,64167.0,64166.0,0.08411977]
[1724561725651,0.48288549,64167.0,64166.0,0.08411977]
[1724561726346,0.4528,64167.0,64166.0,0.08411977]
[1724561726446,0.092,64167.0,64166.0,0.08411977]
[1724561727749,0.002,64167.0,64166.0,0.18635894]
[1724561727953,0.002,64167.0,64166.0,0.46927294]
[1724561729291,0.002,64167.0,64166.0,0.44491977]
[1724561729452,0.002,64167.0,64166.0,0.46927087]
[1724561731257,0.002,64167.0,64166.0,0.08411977]
[1724561731450,0.002,64167.0,64166.0,0.44491977]
[1724561733154,0.092,64167.0,64166.0,0.44491977]
[1724561733958,0.092,64167.0,64166.0,0.08411977]
[1724561734159,0.092,64167.0,64166.0,0.50704014]
[1724561737055,0.092,64167.0,64166.0,0.14624014]
[1724561737453,0.092,64167.0,64166.0,0.50704014]
[1724561739255,0.092,64167.0,64166.0,0.44491977]
[1724561740164,0.002,64167.0,64166.0,0.08411977]
[1724561741153,0.002,64167.0,64166.0,0.44491977]
[1724561741352,0.002,64167.0,64166.0,0.08411977]
[1724561741554,0.002,64167.0,64166.0,0.44491977]
[1724561741752,0.002,64167.0,64166.0,0.08411977]
[1724561742070,0.002,64167.0,64166.0,0.44491977]
[1724561742854,0.002,64167.0,64166.0,0.08411977]
[1724561743055,0.002,64167.0,64166.0,0.44491977]
[1724561743457,0.002,64167.0,64166.0,0.08411977]
[1724561743665,0.002,64167.0,64166.0,0.44491977]
[1724561746105,0.002,64167.0,64166.0,0.08411977]
[1724561746355,0.002,64167.0,64166.0,0.44491977]
[1724561746562,0.002,64167.0,64166.0,0.08411977]
[1724561746961,0.002,64167.0,64166.0,0.44491977]
[1724561747157,0.002,64167.0,64166.0,0.08411977]
[1724561747364,0.002,64167.0,64166.0,0.44491977]
[1724561747957,0.002,64167.0,64166.0,0.08411977]
[1724561748164,0.002,64167.0,64166.0,0.44491977]
[1724561748465,0.00194,64167.0,64166.0,0.44491977]
[1724561748890,0.00194,64167.0,64166.0,0.08411977]
[1724561748969,0.00194,64167.0,64166.0,0.44491977]
[1724561750862,0.00194,64167.0,64166.0,0.08411977]
[1724561751257,0.00194,64167.0,64166.0,0.44491977]
[1724561754162,0.00194,64167.0,64166.0,0.08411977]
[1724561754867,0.00194,64167.0,64166.0,0.55163977]
[1724561755068,0.00194,64167.0,64166.0,0.65359202]
[1724561755303,0.00194,64167.0,64166.0,0.74791676]
[1724561755569,0.00194,64167.0,64166.0,0.77226737]
[1724561755818,0.00194,64167.0,64166.0,0.77226739]
[1724561756163,0.00194,64167.0,64166.0,0.6946658]
[1724561758968,0.00194,64167.0,64166.0,0.69466057]
[1724561759168,0.00194,64167.0,64166.0,1.05546057]
[1724561761123,0.00194,64167.0,64166.0,1.03110994]
[1724561761368,0.00194,64167.0,64166.0,1.05545953]
[1724561761770,0.049,64176.0,64175.0,0.077875]
[1724561761971,0.049,64176.0,64175.0,0.12448152]
[1724561763181,0.051,64176.0,64175.0,0.12648152]
[1724561764350,0.08107981,64176.0,64175.0,0.079875]
[1724561764479,0.08107981,64176.0,64175.0,0.169875]
[1724561765288,0.051,64176.0,64175.0,0.169875]
[1724561765889,0.002,64176.0,64175.0,0.169875]
[1724561774187,0.002,64176.0,64175.0,0.21642748]
[1724561775895,0.002,64176.0,64175.0,0.169875]
[1724561776095,0.002,64176.0,64175.0,0.25636584]
[1724561776880,0.002,64176.0,64175.0,0.23201703]
[1724561776994,0.002,64176.0,64175.0,0.25636584]
[1724561777434,0.002,64176.0,64175.0,0.23201703]